[Event "*** Titled Tuesday Blitz"]
[Site "Chess.com"]
[Date "2021.04.06"]
[Round "1"]
[White "Torrentec"]
[Black "RD4ever"]
[Result "0-1"]
[WhiteElo "2452"]
[BlackElo "2886"]
[TimeControl "180+1"]
[EndTime "10:08:58 PDT"]
[Termination "RD4ever won by checkmate"]

1. e4 {[%clk 0:02:59.5]} 1... e6 {[%clk 0:02:57.7]} 2. d4 {[%clk 0:02:59.4]}
2... d5 {[%clk 0:02:57.5]} 3. Nc3 {[%clk 0:03:00.3]} 3... Nf6 {[%clk 0:02:57]}
4. e5 {[%clk 0:03:00.4]} 4... Nfd7 {[%clk 0:02:57.2]} 5. f4 {[%clk 0:03:00.5]}
5... c5 {[%clk 0:02:57.7]} 6. Nf3 {[%clk 0:03:00.8]} 6... Nc6 {[%clk 0:02:58.3]}
7. Be3 {[%clk 0:03:00.9]} 7... a6 {[%clk 0:02:58.7]} 8. a3 {[%clk 0:03:00.9]}
8... b5 {[%clk 0:02:43.6]} 9. Be2 {[%clk 0:03:00.5]} 9... Qb6 {[%clk 0:02:30.3]}
10. Qd2 {[%clk 0:02:57.5]} 10... cxd4 {[%clk 0:02:21.3]} 11. Nxd4 {[%clk
0:02:56.3]} 11... Bc5 {[%clk 0:02:22.2]} 12. Rd1 {[%clk 0:02:44.8]} 12... Bb7
{[%clk 0:02:19.4]} 13. O-O {[%clk 0:02:31.9]} 13... Rc8 {[%clk 0:02:18]} 14. h3
{[%clk 0:02:25.6]} 14... O-O {[%clk 0:02:15.8]} 15. Kh2 {[%clk 0:02:16.6]} 15...
Rfd8 {[%clk 0:02:06.1]} 16. Bf3 {[%clk 0:01:56.2]} 16... f6 {[%clk 0:01:39.7]}
17. exf6 {[%clk 0:01:51.9]} 17... Nxf6 {[%clk 0:01:40.6]} 18. Bg1 {[%clk
0:01:23.6]} 18... Ne4 {[%clk 0:01:26.8]} 19. Bxe4 {[%clk 0:00:47.1]} 19... dxe4
{[%clk 0:01:27.7]} 20. Nce2 {[%clk 0:00:47.6]} 20... e5 {[%clk 0:01:23.6]} 21.
fxe5 {[%clk 0:00:47.1]} 21... Nxe5 {[%clk 0:01:24.5]} 22. c3 {[%clk 0:00:41]}
22... Nc4 {[%clk 0:01:21.5]} 23. Qg5 {[%clk 0:00:39.4]} 23... Qg6 {[%clk
0:01:11]} 24. Qxg6 {[%clk 0:00:36.4]} 24... hxg6 {[%clk 0:01:11.9]} 25. Ne6
{[%clk 0:00:18.9]} 25... Bd6+ {[%clk 0:01:11.7]} 26. g3 {[%clk 0:00:14.6]} 26...
Re8 {[%clk 0:01:11.7]} 27. N2f4 {[%clk 0:00:12.1]} 27... e3 {[%clk 0:01:03.9]}
28. Rfe1 {[%clk 0:00:10.5]} 28... Bf3 {[%clk 0:01:01]} 29. Rd4 {[%clk
0:00:09.6]} 29... Be5 {[%clk 0:01:00]} 30. Rd7 {[%clk 0:00:09.1]} 30... e2
{[%clk 0:00:50.8]} 31. Bd4 {[%clk 0:00:07.9]} 31... Bc6 {[%clk 0:00:41.5]} 32.
Ra7 {[%clk 0:00:04.8]} 32... Nd2 {[%clk 0:00:35.1]} 33. Bxe5 {[%clk 0:00:04]}
33... Nf3+ {[%clk 0:00:35.2]} 34. Kg2 {[%clk 0:00:03.9]} 34... Nxe1+ {[%clk
0:00:23.1]} 35. Kf2 {[%clk 0:00:04.3]} 35... Nd3+ {[%clk 0:00:23.4]} 36. Nxd3
{[%clk 0:00:04.6]} 36... Rxe6 {[%clk 0:00:23.9]} 37. Rxg7+ {[%clk 0:00:05.2]}
37... Kf8 {[%clk 0:00:23.8]} 38. Rh7 {[%clk 0:00:03.8]} 38... Rce8 {[%clk
0:00:20.3]} 39. Rh8+ {[%clk 0:00:03.2]} 39... Kf7 {[%clk 0:00:20.8]} 40. Rxe8
{[%clk 0:00:04.1]} 40... Kxe8 {[%clk 0:00:20.4]} 41. Bf4 {[%clk 0:00:02.9]}
41... Be4 {[%clk 0:00:19.4]} 42. Ne1 {[%clk 0:00:03.8]} 42... Bd5 {[%clk
0:00:19.5]} 43. Be3 {[%clk 0:00:03.8]} 43... Bc4 {[%clk 0:00:19.9]} 44. b3
{[%clk 0:00:03.3]} 44... Rf6+ {[%clk 0:00:19.7]} 45. Bf4 {[%clk 0:00:02.8]}
45... g5 {[%clk 0:00:13.8]} 46. bxc4 {[%clk 0:00:02.7]} 46... gxf4 {[%clk
0:00:14.4]} 47. g4 {[%clk 0:00:02.4]} 47... f3 {[%clk 0:00:14.7]} 48. cxb5
{[%clk 0:00:02.6]} 48... axb5 {[%clk 0:00:15.6]} 49. g5 {[%clk 0:00:03.4]} 49...
Rf5 {[%clk 0:00:16]} 50. h4 {[%clk 0:00:03.7]} 50... Kf7 {[%clk 0:00:16.6]} 51.
h5 {[%clk 0:00:04]} 51... Kg7 {[%clk 0:00:17.1]} 52. g6 {[%clk 0:00:03.9]} 52...
Kh6 {[%clk 0:00:17]} 53. c4 {[%clk 0:00:02.7]} 53... bxc4 {[%clk 0:00:17.1]} 54.
a4 {[%clk 0:00:03.1]} 54... Kg7 {[%clk 0:00:15.7]} 55. a5 {[%clk 0:00:02.8]}
55... Rxa5 {[%clk 0:00:14.3]} 56. Kxf3 {[%clk 0:00:03]} 56... Re5 {[%clk
0:00:13.7]} 57. Kf2 {[%clk 0:00:02]} 57... c3 {[%clk 0:00:14.2]} 58. Nf3 {[%clk
0:00:02.4]} 58... c2 {[%clk 0:00:13.4]} 59. Nxe5 {[%clk 0:00:01.2]} 59... c1=Q
{[%clk 0:00:13.8]} 60. h6+ {[%clk 0:00:01.4]} 60... Qxh6 {[%clk 0:00:12.8]} 61.
Nf3 {[%clk 0:00:02.3]} 61... Qf4 {[%clk 0:00:12.1]} 62. Kxe2 {[%clk 0:00:03.2]}
62... Kxg6 {[%clk 0:00:12.5]} 63. Nd2 {[%clk 0:00:03.4]} 63... Kf5 {[%clk
0:00:12.2]} 64. Kd3 {[%clk 0:00:03.7]} 64... Qd6+ {[%clk 0:00:12.1]} 65. Kc3
{[%clk 0:00:03.3]} 65... Qc6+ {[%clk 0:00:12.2]} 66. Kd3 {[%clk 0:00:03.4]}
66... Ke5 {[%clk 0:00:12.7]} 67. Nc4+ {[%clk 0:00:03.5]} 67... Kf4 {[%clk
0:00:13.3]} 68. Ne3 {[%clk 0:00:04.4]} 68... Qd7+ {[%clk 0:00:11.3]} 69. Ke2
{[%clk 0:00:02.8]} 69... Qe8 {[%clk 0:00:11.3]} 70. Kf1 {[%clk 0:00:01.8]} 70...
Qxe3 {[%clk 0:00:12.2]} 71. Kg2 {[%clk 0:00:02.2]} 71... Qd2+ {[%clk 0:00:12.2]}
72. Kh3 {[%clk 0:00:02.3]} 72... Kf3 {[%clk 0:00:12.4]} 73. Kh4 {[%clk
0:00:02.3]} 73... Qh6# {[%clk 0:00:13.3]} 0-1

[Event "*** Titled Tuesday Blitz"]
[Site "Chess.com"]
[Date "2021.04.06"]
[Round "1"]
[White "crazy_but_lazy"]
[Black "fearless_guy"]
[Result "0-1"]
[WhiteElo "2418"]
[BlackElo "2783"]
[TimeControl "180+1"]
[EndTime "10:09:03 PDT"]
[Termination "fearless_guy won by resignation"]

1. d4 {[%clk 0:02:46.2]} 1... e6 {[%clk 0:02:58.5]} 2. c4 {[%clk 0:02:45.3]}
2... b6 {[%clk 0:02:59.2]} 3. Nc3 {[%clk 0:02:41.8]} 3... Bb7 {[%clk 0:02:59.3]}
4. Bf4 {[%clk 0:02:37.5]} 4... Bb4 {[%clk 0:02:54.6]} 5. Rc1 {[%clk 0:02:34.3]}
5... Nf6 {[%clk 0:02:50.1]} 6. e3 {[%clk 0:02:32.1]} 6... Ne4 {[%clk 0:02:39.6]}
7. Ne2 {[%clk 0:02:19.9]} 7... g5 {[%clk 0:02:26.3]} 8. Be5 {[%clk 0:02:16.7]}
8... f6 {[%clk 0:02:26.1]} 9. Bg3 {[%clk 0:02:16.3]} 9... h5 {[%clk 0:02:22.8]}
10. f3 {[%clk 0:02:05.3]} 10... h4 {[%clk 0:01:48.1]} 11. fxe4 {[%clk
0:01:53.5]} 11... hxg3 {[%clk 0:01:33.5]} 12. Nxg3 {[%clk 0:01:54.4]} 12... Qe7
{[%clk 0:01:07]} 13. a3 {[%clk 0:01:46.6]} 13... Bd6 {[%clk 0:01:05.4]} 14. Qf3
{[%clk 0:01:06.6]} 14... f5 {[%clk 0:00:44]} 15. Nb5 {[%clk 0:00:54.1]} 15... g4
{[%clk 0:00:35.8]} 16. Nxd6+ {[%clk 0:00:33.8]} 16... cxd6 {[%clk 0:00:32]} 17.
Qf4 {[%clk 0:00:29.3]} 17... Nc6 {[%clk 0:00:30.5]} 18. Bd3 {[%clk 0:00:20.2]}
18... O-O-O {[%clk 0:00:25.4]} 19. exf5 {[%clk 0:00:18.8]} 19... e5 {[%clk
0:00:25.1]} 20. f6 {[%clk 0:00:14.6]} 20... exf4 {[%clk 0:00:22.1]} 21. fxe7
{[%clk 0:00:14.7]} 21... Nxe7 {[%clk 0:00:20.5]} 22. Ne4 {[%clk 0:00:11.7]}
22... Nf5 {[%clk 0:00:16.2]} 23. Kd2 {[%clk 0:00:07.9]} 23... fxe3+ {[%clk
0:00:16.2]} 24. Kc3 {[%clk 0:00:08.3]} 24... Bxe4 {[%clk 0:00:16]} 25. Bxe4
{[%clk 0:00:08.5]} 25... Nh4 {[%clk 0:00:15.8]} 26. Kd3 {[%clk 0:00:08.1]} 26...
Rde8 {[%clk 0:00:16]} 27. Rcf1 {[%clk 0:00:06.2]} 27... e2 {[%clk 0:00:15.9]}
28. Re1 {[%clk 0:00:06.7]} 28... d5 {[%clk 0:00:11]} 29. cxd5 {[%clk 0:00:06.8]}
29... Kc7 {[%clk 0:00:11.8]} 30. Rxe2 {[%clk 0:00:07.4]} 30... Kd6 {[%clk
0:00:12.3]} 31. g3 {[%clk 0:00:07.6]} 31... Nf3 {[%clk 0:00:10.5]} 32. Bxf3
{[%clk 0:00:07.5]} 32... gxf3 {[%clk 0:00:11.4]} 33. Rf2 {[%clk 0:00:07.7]}
33... Kxd5 {[%clk 0:00:07.2]} 34. Rxf3 {[%clk 0:00:07.3]} 34... Kc6 {[%clk
0:00:08.1]} 35. Rc1+ {[%clk 0:00:05.8]} 35... Kb5 {[%clk 0:00:08.9]} 36. Rc2
{[%clk 0:00:06.7]} 36... Ka6 {[%clk 0:00:09.3]} 37. Rf5 {[%clk 0:00:07]} 37...
Re6 {[%clk 0:00:09.4]} 38. d5 {[%clk 0:00:06.5]} 38... Re1 {[%clk 0:00:09.3]}
39. d6 {[%clk 0:00:06.8]} 39... Rd1+ {[%clk 0:00:09.9]} 40. Kc3 {[%clk
0:00:05.9]} 40... Rxd6 {[%clk 0:00:09.8]} 41. Kb3 {[%clk 0:00:05.8]} 41... Rd3+
{[%clk 0:00:10.1]} 42. Rc3 {[%clk 0:00:06.1]} 42... Rd2 {[%clk 0:00:10.5]} 43.
Rc2 {[%clk 0:00:06.1]} 43... Rxc2 {[%clk 0:00:10.8]} 44. Kxc2 {[%clk 0:00:07]}
44... Rxh2+ {[%clk 0:00:11.7]} 45. Kc3 {[%clk 0:00:07.5]} 45... Rg2 {[%clk
0:00:12.2]} 46. Rg5 {[%clk 0:00:08.1]} 46... Kb7 {[%clk 0:00:12.9]} 47. b3
{[%clk 0:00:08.5]} 47... Kc6 {[%clk 0:00:13.7]} 48. a4 {[%clk 0:00:08.9]} 48...
a5 {[%clk 0:00:14.2]} 49. Kc4 {[%clk 0:00:09.1]} 49... d5+ {[%clk 0:00:13.6]}
50. Kc3 {[%clk 0:00:09.1]} 50... Kc5 {[%clk 0:00:13.8]} 51. Kd3 {[%clk
0:00:09.6]} 51... Rg1 {[%clk 0:00:14.4]} 52. Kc3 {[%clk 0:00:09.6]} 52... Rf1
{[%clk 0:00:15]} 53. Rg8 {[%clk 0:00:09.9]} 53... Rf3+ {[%clk 0:00:15.5]} 54.
Kc2 {[%clk 0:00:10.4]} 54... Kb4 {[%clk 0:00:16.3]} 55. Rg6 {[%clk 0:00:10]}
55... Rc3+ {[%clk 0:00:16.5]} 56. Kd2 {[%clk 0:00:09.1]} 56... Rxb3 {[%clk
0:00:08.5]} 57. Rxb6+ {[%clk 0:00:09.3]} 57... Kxa4 {[%clk 0:00:09.3]} 58. Rxb3
{[%clk 0:00:08.1]} 58... Kxb3 {[%clk 0:00:10.2]} 59. g4 {[%clk 0:00:09]} 59...
a4 {[%clk 0:00:11]} 60. g5 {[%clk 0:00:09.9]} 60... a3 {[%clk 0:00:11.8]} 61. g6
{[%clk 0:00:10.8]} 61... a2 {[%clk 0:00:12.6]} 62. g7 {[%clk 0:00:11.7]} 62...
a1=Q {[%clk 0:00:13.3]} 63. g8=Q {[%clk 0:00:12.6]} 63... Qd4+ {[%clk
0:00:13.6]} 64. Kc1 {[%clk 0:00:12.8]} 64... Qc4+ {[%clk 0:00:14.3]} 65. Kd1
{[%clk 0:00:13.3]} 65... Qd3+ {[%clk 0:00:12.5]} 66. Ke1 {[%clk 0:00:13]} 66...
Qc3+ {[%clk 0:00:11.7]} 67. Ke2 {[%clk 0:00:12.5]} 67... Qc2+ {[%clk 0:00:12.1]}
68. Ke3 {[%clk 0:00:12.7]} 68... Qe4+ {[%clk 0:00:12.4]} 69. Kd2 {[%clk
0:00:12.7]} 69... Qd4+ {[%clk 0:00:13.1]} 70. Ke2 {[%clk 0:00:12.4]} 70... Kc3
{[%clk 0:00:11.4]} 71. Qc8+ {[%clk 0:00:11.8]} 71... Qc4+ {[%clk 0:00:11.9]} 0-1

[Event "*** Titled Tuesday Blitz"]
[Site "Chess.com"]
[Date "2021.04.06"]
[Round "1"]
[White "prachiti01"]
[Black "Lenyas66"]
[Result "0-1"]
[WhiteElo "2121"]
[BlackElo "2511"]
[TimeControl "180+1"]
[EndTime "10:09:07 PDT"]
[Termination "Lenyas66 won by checkmate"]

1. e4 {[%clk 0:03:00.9]} 1... c5 {[%clk 0:02:58.9]} 2. c3 {[%clk 0:03:00.1]}
2... e6 {[%clk 0:02:58]} 3. d4 {[%clk 0:02:55.1]} 3... d5 {[%clk 0:02:58.1]} 4.
exd5 {[%clk 0:02:48.9]} 4... exd5 {[%clk 0:02:58.3]} 5. Nf3 {[%clk 0:02:48.3]}
5... Nc6 {[%clk 0:02:58.5]} 6. Be2 {[%clk 0:02:47.7]} 6... Bd6 {[%clk
0:02:50.1]} 7. dxc5 {[%clk 0:02:44.1]} 7... Bxc5 {[%clk 0:02:49.2]} 8. O-O
{[%clk 0:02:43.9]} 8... Nge7 {[%clk 0:02:49.1]} 9. Nbd2 {[%clk 0:02:43.5]} 9...
O-O {[%clk 0:02:48.6]} 10. Nb3 {[%clk 0:02:43.2]} 10... Bb6 {[%clk 0:02:42.5]}
11. Nbd4 {[%clk 0:02:41.2]} 11... a6 {[%clk 0:02:39.1]} 12. Be3 {[%clk
0:02:40.6]} 12... Re8 {[%clk 0:02:29.7]} 13. Qd2 {[%clk 0:02:35.1]} 13... Na5
{[%clk 0:02:25.4]} 14. Rad1 {[%clk 0:02:27]} 14... Nc4 {[%clk 0:02:23.1]} 15.
Bxc4 {[%clk 0:02:26.7]} 15... dxc4 {[%clk 0:02:23.3]} 16. Nc2 {[%clk 0:02:26.2]}
16... Qxd2 {[%clk 0:02:16.1]} 17. Rxd2 {[%clk 0:02:14.8]} 17... Bc7 {[%clk
0:02:15.5]} 18. h3 {[%clk 0:02:08.7]} 18... Nf5 {[%clk 0:02:11.9]} 19. Rd5
{[%clk 0:01:56.9]} 19... Be6 {[%clk 0:02:08.6]} 20. Rdd1 {[%clk 0:01:52]} 20...
h6 {[%clk 0:01:57.2]} 21. Nfd4 {[%clk 0:01:51.6]} 21... Nxd4 {[%clk 0:01:49.3]}
22. Nxd4 {[%clk 0:01:50.3]} 22... Bd7 {[%clk 0:01:48.6]} 23. Rd2 {[%clk
0:01:41.1]} 23... Rad8 {[%clk 0:01:47.4]} 24. Rfd1 {[%clk 0:01:31]} 24... Ba4
{[%clk 0:01:46.7]} 25. b3 {[%clk 0:01:26.1]} 25... cxb3 {[%clk 0:01:46.3]} 26.
axb3 {[%clk 0:01:26.1]} 26... Bd7 {[%clk 0:01:46.4]} 27. b4 {[%clk 0:01:20.1]}
27... f5 {[%clk 0:01:36.6]} 28. Nb3 {[%clk 0:01:17.5]} 28... Be6 {[%clk
0:01:19.5]} 29. Nc5 {[%clk 0:01:09.4]} 29... Bc8 {[%clk 0:01:13.5]} 30. Rxd8
{[%clk 0:01:08]} 30... Rxd8 {[%clk 0:01:13.1]} 31. Rxd8+ {[%clk 0:01:07.5]}
31... Bxd8 {[%clk 0:01:13.1]} 32. Bd4 {[%clk 0:01:07.4]} 32... g5 {[%clk
0:01:11.6]} 33. Kf1 {[%clk 0:01:06.6]} 33... Kf7 {[%clk 0:01:10]} 34. Ke2 {[%clk
0:01:06.3]} 34... Bc7 {[%clk 0:00:57.9]} 35. Nd3 {[%clk 0:01:02]} 35... Ke6
{[%clk 0:00:56.5]} 36. c4 {[%clk 0:00:59.8]} 36... b6 {[%clk 0:00:52.6]} 37. c5
{[%clk 0:00:56.9]} 37... b5 {[%clk 0:00:52.3]} 38. Bc3 {[%clk 0:00:56.5]} 38...
Kd5 {[%clk 0:00:51.8]} 39. Nb2 {[%clk 0:00:56.2]} 39... g4 {[%clk 0:00:47.2]}
40. h4 {[%clk 0:00:50.4]} 40... h5 {[%clk 0:00:47.3]} 41. g3 {[%clk 0:00:50.1]}
41... f4 {[%clk 0:00:47.1]} 42. Be1 {[%clk 0:00:46.6]} 42... Bf5 {[%clk
0:00:45.3]} 43. Nd3 {[%clk 0:00:43.8]} 43... fxg3 {[%clk 0:00:43.1]} 44. fxg3
{[%clk 0:00:43]} 44... Kc4 {[%clk 0:00:38.2]} 45. Nf4 {[%clk 0:00:41.1]} 45...
Bxf4 {[%clk 0:00:36.4]} 46. gxf4 {[%clk 0:00:40.5]} 46... a5 {[%clk 0:00:33.8]}
47. bxa5 {[%clk 0:00:38.8]} 47... Kxc5 {[%clk 0:00:34]} 48. Ke3 {[%clk
0:00:32.3]} 48... b4 {[%clk 0:00:33.7]} 49. Bd2 {[%clk 0:00:26.9]} 49... Kb5
{[%clk 0:00:32.5]} 50. Kd4 {[%clk 0:00:24.9]} 50... g3 {[%clk 0:00:26.7]} 51. a6
{[%clk 0:00:21.9]} 51... g2 {[%clk 0:00:25.3]} 52. Be3 {[%clk 0:00:21.6]} 52...
Kxa6 {[%clk 0:00:25.4]} 53. Kc4 {[%clk 0:00:20.3]} 53... Ka5 {[%clk 0:00:24.9]}
54. Kb3 {[%clk 0:00:19.1]} 54... Kb5 {[%clk 0:00:24.8]} 55. Bd4 {[%clk
0:00:18.1]} 55... Be6+ {[%clk 0:00:24.9]} 56. Kb2 {[%clk 0:00:17.7]} 56... Kc4
{[%clk 0:00:25.3]} 57. Bg1 {[%clk 0:00:18]} 57... Kd3 {[%clk 0:00:25.2]} 58. Ba7
{[%clk 0:00:12.6]} 58... Ke4 {[%clk 0:00:24.9]} 59. Bg1 {[%clk 0:00:10.7]} 59...
Kxf4 {[%clk 0:00:24.9]} 60. Kc1 {[%clk 0:00:06.1]} 60... Kg3 {[%clk 0:00:24.8]}
61. Kd2 {[%clk 0:00:05.5]} 61... Kxh4 {[%clk 0:00:25]} 62. Ke1 {[%clk
0:00:04.1]} 62... Kg3 {[%clk 0:00:24.8]} 63. Bd4 {[%clk 0:00:03.3]} 63... Kf3
{[%clk 0:00:24.2]} 64. Bc5 {[%clk 0:00:01.1]} 64... b3 {[%clk 0:00:23.2]} 65.
Kd2 {[%clk 0:00:02]} 65... h4 {[%clk 0:00:22.9]} 66. Kc3 {[%clk 0:00:02.7]}
66... h3 {[%clk 0:00:22.6]} 67. Kb2 {[%clk 0:00:03.5]} 67... Ke2 {[%clk
0:00:22.6]} 68. Bd4 {[%clk 0:00:03.4]} 68... h2 {[%clk 0:00:22.7]} 69. Bc5
{[%clk 0:00:03.5]} 69... g1=Q {[%clk 0:00:22.5]} 70. Bxg1 {[%clk 0:00:03.9]}
70... hxg1=Q {[%clk 0:00:22.7]} 71. Kc3 {[%clk 0:00:04.1]} 71... Qc5+ {[%clk
0:00:21.6]} 72. Kb2 {[%clk 0:00:03.9]} 72... Qb4 {[%clk 0:00:21.6]} 73. Kb1
{[%clk 0:00:02.9]} 73... Bf5+ {[%clk 0:00:19.4]} 74. Kc1 {[%clk 0:00:03.7]}
74... Qc3# {[%clk 0:00:19.2]} 0-1

[Event "*** Titled Tuesday Blitz"]
[Site "Chess.com"]
[Date "2021.04.06"]
[Round "1"]
[White "vlad_Sid"]
[Black "TC2304"]
[Result "1-0"]
[WhiteElo "2597"]
[BlackElo "2289"]
[TimeControl "180+1"]
[EndTime "10:09:14 PDT"]
[Termination "vlad_Sid won by checkmate"]

1. c4 {[%clk 0:03:00.9]} 1... Nf6 {[%clk 0:02:59]} 2. g3 {[%clk 0:03:01.5]} 2...
c5 {[%clk 0:02:58.8]} 3. Bg2 {[%clk 0:02:59.8]} 3... Nc6 {[%clk 0:02:59.2]} 4.
Nc3 {[%clk 0:03:00]} 4... g6 {[%clk 0:02:59.7]} 5. Nf3 {[%clk 0:02:59]} 5... Bg7
{[%clk 0:03:00.2]} 6. d4 {[%clk 0:02:59.4]} 6... cxd4 {[%clk 0:02:59.2]} 7. Nxd4
{[%clk 0:03:00.3]} 7... O-O {[%clk 0:02:58.7]} 8. O-O {[%clk 0:02:59.7]} 8...
Qa5 {[%clk 0:02:59.2]} 9. Nb3 {[%clk 0:02:58.3]} 9... Qh5 {[%clk 0:02:59]} 10.
c5 {[%clk 0:02:58.1]} 10... d6 {[%clk 0:02:56.3]} 11. cxd6 {[%clk 0:02:55.2]}
11... exd6 {[%clk 0:02:57.2]} 12. Bf4 {[%clk 0:02:39]} 12... Ng4 {[%clk
0:02:50]} 13. h3 {[%clk 0:02:30.8]} 13... Nge5 {[%clk 0:02:49.6]} 14. e3 {[%clk
0:02:27]} 14... Qxd1 {[%clk 0:02:13.2]} 15. Rfxd1 {[%clk 0:02:27.9]} 15... Rd8
{[%clk 0:02:10.5]} 16. Nb5 {[%clk 0:02:17.8]} 16... Nc4 {[%clk 0:02:09.9]} 17.
Rac1 {[%clk 0:01:56.4]} 17... Nxb2 {[%clk 0:02:00.2]} 18. Rxd6 {[%clk
0:01:54.1]} 18... Rxd6 {[%clk 0:01:59]} 19. Nxd6 {[%clk 0:01:53.4]} 19... Nd3
{[%clk 0:01:53]} 20. Rc2 {[%clk 0:01:42]} 20... Nxf4 {[%clk 0:01:49]} 21. gxf4
{[%clk 0:01:42.9]} 21... Bf8 {[%clk 0:01:49.2]} 22. Nxc8 {[%clk 0:01:27.1]}
22... Rxc8 {[%clk 0:01:50.1]} 23. Bxc6 {[%clk 0:01:27.7]} 23... bxc6 {[%clk
0:01:40.4]} 24. Na5 {[%clk 0:01:26.7]} 24... c5 {[%clk 0:01:36.5]} 25. Nc4
{[%clk 0:01:26.4]} 25... Rb8 {[%clk 0:01:28.3]} 26. Kf1 {[%clk 0:01:25.7]} 26...
Rb1+ {[%clk 0:01:20.3]} 27. Kg2 {[%clk 0:01:16.6]} 27... Kg7 {[%clk 0:01:18.3]}
28. Nd2 {[%clk 0:01:12]} 28... Rb4 {[%clk 0:01:13.5]} 29. Kf3 {[%clk 0:01:09.1]}
29... h5 {[%clk 0:01:11.9]} 30. Ne4 {[%clk 0:01:08.3]} 30... Rb5 {[%clk
0:01:06.1]} 31. a4 {[%clk 0:01:07.7]} 31... Rb4 {[%clk 0:00:56.3]} 32. Ra2
{[%clk 0:00:55.7]} 32... a5 {[%clk 0:00:52.2]} 33. Nc3 {[%clk 0:00:51.3]} 33...
Rb3 {[%clk 0:00:46.1]} 34. Nd5 {[%clk 0:00:47]} 34... Rd3 {[%clk 0:00:32.9]} 35.
Ke4 {[%clk 0:00:46.3]} 35... Rd1 {[%clk 0:00:32.7]} 36. Nb6 {[%clk 0:00:40.1]}
36... Bd6 {[%clk 0:00:20]} 37. Nc4 {[%clk 0:00:36.9]} 37... Bc7 {[%clk
0:00:20.3]} 38. Rc2 {[%clk 0:00:30.7]} 38... f5+ {[%clk 0:00:18.8]} 39. Kf3
{[%clk 0:00:31]} 39... Ra1 {[%clk 0:00:17.9]} 40. Nb2 {[%clk 0:00:23.7]} 40...
Bb6 {[%clk 0:00:17.8]} 41. Ke2 {[%clk 0:00:20.4]} 41... Kf6 {[%clk 0:00:16.7]}
42. Kd3 {[%clk 0:00:20.7]} 42... Rh1 {[%clk 0:00:15.5]} 43. Nc4 {[%clk
0:00:20.3]} 43... Bc7 {[%clk 0:00:16]} 44. Nd2 {[%clk 0:00:20.3]} 44... Bb6
{[%clk 0:00:14.4]} 45. Rb2 {[%clk 0:00:20.6]} 45... Bc7 {[%clk 0:00:13.8]} 46.
Rb7 {[%clk 0:00:20.5]} 46... Bd8 {[%clk 0:00:12.6]} 47. Rd7 {[%clk 0:00:17.6]}
47... Be7 {[%clk 0:00:11.5]} 48. Nc4 {[%clk 0:00:14.9]} 48... Rd1+ {[%clk
0:00:10.9]} 49. Nd2 {[%clk 0:00:14.3]} 49... Ra1 {[%clk 0:00:10.6]} 50. Ra7
{[%clk 0:00:06.4]} 50... Rxa4 {[%clk 0:00:10.2]} 51. Nc4 {[%clk 0:00:06.9]}
51... Ra2 {[%clk 0:00:09.3]} 52. Ra6+ {[%clk 0:00:05]} 52... Kg7 {[%clk
0:00:07.6]} 53. Ne5 {[%clk 0:00:05.6]} 53... Ra3+ {[%clk 0:00:06.5]} 54. Ke2
{[%clk 0:00:05.1]} 54... Ra2+ {[%clk 0:00:06.6]} 55. Kf3 {[%clk 0:00:05.1]}
55... a4 {[%clk 0:00:07.5]} 56. Rxg6+ {[%clk 0:00:04.6]} 56... Kf8 {[%clk
0:00:08.1]} 57. Ra6 {[%clk 0:00:05]} 57... a3 {[%clk 0:00:08.3]} 58. Ra7 {[%clk
0:00:03.8]} 58... Bd6 {[%clk 0:00:07.7]} 59. Nc4 {[%clk 0:00:03.4]} 59... Be7
{[%clk 0:00:07]} 60. Ne5 {[%clk 0:00:03.7]} 60... Bd6 {[%clk 0:00:05.2]} 61.
Ng6+ {[%clk 0:00:04.2]} 61... Ke8 {[%clk 0:00:04.7]} 62. e4 {[%clk 0:00:05.1]}
62... fxe4+ {[%clk 0:00:04.6]} 63. Kxe4 {[%clk 0:00:06]} 63... c4 {[%clk
0:00:05.1]} 64. Kd5 {[%clk 0:00:05.9]} 64... Bxf4 {[%clk 0:00:03]} 65. Nxf4
{[%clk 0:00:05.6]} 65... Rxf2 {[%clk 0:00:03.6]} 66. Ne6 {[%clk 0:00:04.6]}
66... Rf3 {[%clk 0:00:02.3]} 67. Kd6 {[%clk 0:00:04.5]} 67... Rd3+ {[%clk
0:00:02.8]} 68. Ke5 {[%clk 0:00:04.8]} 68... Rxh3 {[%clk 0:00:02.8]} 69. Nf4
{[%clk 0:00:03.4]} 69... Re3+ {[%clk 0:00:02.9]} 70. Kd5 {[%clk 0:00:02.6]}
70... Rf3 {[%clk 0:00:03.7]} 71. Ne6 {[%clk 0:00:02.7]} 71... Rf5+ {[%clk
0:00:04]} 72. Kd6 {[%clk 0:00:02.6]} 72... Rf1 {[%clk 0:00:02.3]} 73. Re7#
{[%clk 0:00:03]} 1-0